fUSD/lending_fUSD_20240802
["ID","MTS","AMOUNT","RATE_DAILY","PERIOD"]
[333890214,1722600638988,-11213.90768419,0.00019118,2]
[333890215,1722600639000,-3284.92062999,0.00019118,2]
[333890216,1722600639011,-11544.25068953,0.00019118,2]
[333890217,1722600639021,-20842.42614784,0.00019178,7]
[333890218,1722600639031,-2109.83826179,0.00019178,7]
[333890219,1722600639043,-6000.0,0.00019178,7]
[333890220,1722600639054,-315.94706267,0.00019178,7]
[333890225,1722600640211,-578.06080476,0.00019178,7]
[333890227,1722600640223,-3865.3914063,0.00019178,7]
[333890230,1722600640234,-304.33735203,0.00019178,7]
[333890234,1722600640266,-989.05999998,0.00019178,7]
[333890236,1722600640277,-1986.34492326,0.00019178,7]
[333890238,1722600640531,-844.59940527,0.00019178,7]
[333890239,1722600640543,-1663.5002,0.00019178,7]
[333890240,1722600640576,-300.0,0.00018958,2]
[333890241,1722600640585,-30578.49284769,0.00019178,7]
[333890242,1722600640600,-1308.35300609,0.00019178,7]
[333890243,1722600640623,-8884.16929501,0.00019178,7]
[333890244,1722600640633,-500.0,0.00019178,2]
[333890245,1722600640642,-500.0,0.00019178,2]
[333890247,1722600640651,-500.0,0.00019178,2]
[333890249,1722600640660,-500.0,0.00019178,2]
[333890251,1722600640670,-500.0,0.00019178,2]
[333890253,1722600640679,-500.0,0.00019178,2]
[333890255,1722600640689,-500.0,0.00019178,2]
[333890257,1722600640698,-500.0,0.00019178,2]
[333890259,1722600640708,-500.0,0.00019178,2]
[333890261,1722600640717,-500.0,0.00019178,2]
[333890263,1722600640727,-500.0,0.00019178,2]
[333890264,1722600640736,-500.0,0.00019178,2]
[333890266,1722600640745,-500.0,0.00019178,2]
[333890268,1722600640755,-624.21,0.00019178,2]
[333890270,1722600640765,-500.0,0.00019178,2]
[333890273,1722600640775,-500.0,0.00019178,2]
[333890275,1722600640784,-2350.64,0.00019178,2]
[333890277,1722600640793,-500.0,0.00019178,2]
[333890279,1722600640803,-500.0,0.00019178,2]
[333890281,1722600640812,-644.27,0.00019178,2]
[333890283,1722600640822,-500.0,0.00019178,2]
[333890285,1722600640831,-1693.78620104,0.00019178,2]
[333890287,1722600640849,-4.94379896,0.00019178,2]
[333890289,1722600640858,-244.35453813,0.00019178,2]
[333890291,1722600640867,-500.0,0.00019178,2]
[333890293,1722600640877,-91.47824925,0.00019178,2]
[333890296,1722600640949,-408.52175075,0.00019178,2]
[333890297,1722600640959,-500.0,0.00019178,2]
[333890298,1722600640969,-41.73561739,0.00019178,2]
[333890299,1722600640981,-1775.62438261,0.00019178,2]
[333890300,1722600640991,-560.14683643,0.00019178,2]
[333890301,1722600641002,-79.9563431,0.00019178,2]
[333890302,1722600641012,-500.0,0.00019178,2]
[333890303,1722600641021,-427.56677786,0.00019178,2]
[333890314,1722600643375,-250.0,0.00012594,2]
[333890315,1722600643385,-193.40322214,0.00019178,2]
[333890316,1722600643395,-246.59677786,0.00019178,2]
[333890317,1722600643481,-253.40322214,0.00019178,2]
[333890318,1722600643491,-1073.62,0.00019178,2]
[333890319,1722600643500,-500.0,0.00019178,2]
[333890320,1722600643515,-500.0,0.00019178,2]
[333890321,1722600643525,-500.0,0.00019178,2]
[333890322,1722600643534,-500.0,0.00019178,2]
[333890323,1722600643544,-1408.4,0.00019178,2]
[333890324,1722600643555,-581.88162317,0.00019178,2]
[333890325,1722600643565,-500.0,0.00019178,2]
[333890326,1722600643575,-500.0,0.00019178,2]
[333890327,1722600643586,-982.69515469,0.00019178,2]
[333890328,1722600643599,-61.55484531,0.00019178,2]
[333890329,1722600643609,-2286.14,0.00019178,2]
[333890330,1722600643619,-913.93,0.00019178,2]
[333890331,1722600643629,-897.76,0.00019178,2]
[333890332,1722600643639,-500.0,0.00019178,2]
[333890333,1722600643648,-600.65,0.00019178,2]
[333890334,1722600643658,-160.38015469,0.00019178,2]
[333890335,1722600643671,-339.61984531,0.00019178,2]
[333890336,1722600643680,-500.0,0.00019178,2]
[333890337,1722600643691,-500.0,0.00019178,2]
[333890338,1722600643701,-947.56,0.00019178,2]
[333890339,1722600643710,-500.0,0.00019178,2]
[333890340,1722600643720,-720.15,0.00019178,2]
[333890341,1722600643731,-500.0,0.00019178,2]
[333890342,1722600643740,-1078.92,0.00019178,2]
[333890343,1722600643750,-950.21,0.00019178,2]
[333890344,1722600643760,-500.0,0.00019178,2]
[333890345,1722600643769,-500.0,0.00019178,2]
[333890346,1722600643779,-1721.71,0.00019178,2]
[333890347,1722600643789,-500.0,0.00019178,2]
[333890348,1722600643799,-500.0,0.00019178,2]
[333890349,1722600643809,-826.94,0.00019178,2]
[333890350,1722600643819,-500.0,0.00019178,2]
[333890351,1722600643828,-856.48,0.00019178,2]
[333890352,1722600643838,-500.0,0.00019178,2]
[333890353,1722600643847,-500.0,0.00019178,2]
[333890354,1722600643857,-605.38,0.00019178,2]
[333890355,1722600643867,-524.11,0.00019178,2]
[333890356,1722600643877,-500.0,0.00019178,2]
[333890357,1722600643887,-500.0,0.00019178,2]
[333890358,1722600643897,-500.0,0.00019178,2]
[333890359,1722600643907,-500.0,0.00019178,2]
[333890360,1722600643916,-272.54579969,0.00019178,2]
[333890361,1722600643931,-274.49314456,0.00019178,2]
[333890362,1722600643943,-75.03105575,0.00019178,2]
[333890363,1722600643953,-284.70750644,0.00019178,2]
[333890364,1722600643969,-328.04999985,0.00019178,2]
[333890365,1722600643989,-194.33249371,0.00019178,2]
[333890366,1722600643999,-187.02986947,0.00019178,2]
[333890367,1722600644008,-397.55202313,0.00019178,2]
[333890372,1722600646434,-102.44797687,0.00019178,2]
[333890373,1722600646448,-500.0,0.00019178,2]
[333890374,1722600646458,-500.0,0.00019178,2]
[333890375,1722600646468,-500.0,0.00019178,2]
[333890376,1722600646478,-563.68,0.00019178,2]
[333890377,1722600646488,-1556.87,0.00019178,2]
[333890378,1722600646498,-500.0,0.00019178,2]
[333890379,1722600646508,-1669.04,0.00019178,2]
[333890380,1722600646521,-2311.05,0.00019178,2]
[333890381,1722600646531,-500.0,0.00019178,2]
[333890382,1722600646541,-1016.48,0.00019178,2]
[333890383,1722600646550,-500.0,0.00019178,2]
[333890384,1722600646562,-663.22,0.00019178,2]
[333890385,1722600646571,-81.56938544,0.00019178,2]
[333890386,1722600646618,-418.43061456,0.00019178,2]
[333890387,1722600646627,-340.6521153,0.00019178,2]
[333890388,1722600646639,-159.6678847,0.00019178,2]
[333890389,1722600646648,-500.0,0.00019178,2]
[333890390,1722600646658,-858.37,0.00019178,2]
[333890391,1722600646668,-266.8368045,0.00019178,2]
[333890392,1722600646681,-247.5687611,0.00019178,2]
[333890393,1722600646814,-1031.6,0.00019178,2]
[333890395,1722600646824,-526.19,0.00019178,2]
[333890397,1722600646833,-500.0,0.00019178,2]
[333890399,1722600646842,-553.20411227,0.00019178,2]
[333890403,1722600646877,-669.19588773,0.00019178,2]
[333890405,1722600646887,-500.0,0.00019178,2]
[333890407,1722600646897,-192.69092227,0.00019178,2]
[333890409,1722600646909,-314.9828645,0.00019178,2]
[333890411,1722600646919,-590.69,0.00019178,2]
[333890413,1722600646929,-496.40774179,0.00019178,2]
[333890415,1722600646939,-432.773018,0.00019178,2]
[333890418,1722600646960,-144.106982,0.00019178,2]
[333890420,1722600646970,-153.34853768,0.00019178,2]
[333890422,1722600646981,-353.47,0.00019178,2]
[333890424,1722600646992,-561.55,0.00019178,2]
[333890430,1722600647025,-420.02146232,0.00019178,2]
[333890432,1722600647035,-151.28796461,0.00019178,2]
[333890502,1722601110685,217.6,0.00025523,120]
[333890503,1722601204059,2788.115545,0.00025,120]
[333890504,1722601499952,151.0,0.00020469,120]
[333890505,1722601546464,1001.12853436,0.00027,120]
[333890506,1722601675754,49089.26333449,0.0002,120]
[333890507,1722601677181,1016.72118374,0.00025,60]
[333890508,1722601683482,417.83002769,0.00024,120]
[333890511,1722601726274,350.0,0.00025,120]
[333890517,1722601831855,-300.0,0.00010074,2]
[333890518,1722601831865,-13713.60347488,0.00010075,10]
[333890519,1722601831880,-1259.58718006,0.00010075,10]
[333890520,1722601831891,-279.92831739,0.00010075,10]
[333890521,1722601831920,-1878.16021111,0.00010075,10]
[333890522,1722601831935,-2082.23650658,0.00010075,10]
[333890523,1722601831946,-1762.6274445,0.00010075,10]
[333890524,1722601831982,-4688.66082144,0.00010075,10]
[333890525,1722601832043,-562.21440665,0.00010075,10]
[333890526,1722601832058,-687.14794509,0.00010075,10]
[333890527,1722601832070,-988.43302,0.00010075,10]
[333890528,1722601832109,-576.86300522,0.00010075,10]
[333890607,1722601838738,-1511.4144755,0.00010075,10]
[333890655,1722601839570,-1143.40519,0.00010075,10]
[333890657,1722601839581,-1850.0,0.00010075,10]
[333890659,1722601839593,-452.64,0.00010075,10]
[333890661,1722601839604,-854.34805812,0.00010075,10]
[333890662,1722601839888,-632.51713688,0.00010075,10]
[333890663,1722601839924,-599.02514695,0.00010075,10]
[333890664,1722601839935,-963.3585618,0.00010075,10]
[333890665,1722601839957,-5903.13447416,0.00010075,10]
[333890666,1722601839982,-1777.7292,0.00010075,10]
[333890667,1722601839994,-1928.21244514,0.00010075,10]
[333890677,1722601840082,-4373.76747663,0.00010075,10]
[333890680,1722601840096,-509.62668515,0.00010075,10]
[333890683,1722601840106,-150.0,0.00010499,2]
[333890686,1722601840115,-155.61614551,0.000105,2]
[333890688,1722601840125,-7893.44191472,0.000105,2]
[333890690,1722601840136,-801.25,0.000105,2]
[333890728,1722601842865,-562.6023957,0.000105,2]
[333890730,1722601842917,-313.00235196,0.000105,2]
[333890731,1722601842957,-336.6946266,0.000105,2]
[333890732,1722601842968,-232.62137813,0.000105,2]
[333890733,1722601842978,-157.35736911,0.000109,2]
[333890734,1722601842987,-210.02125276,0.00010998,2]
[333890735,1722601843006,-547.06983083,0.00010998,2]
[333890736,1722601843030,-2285.71649448,0.00010998,2]
[333890737,1722601843041,-314.105432,0.00010998,2]
[333890738,1722601843069,-1030.49844899,0.00010998,2]
[333890739,1722601843079,-18069.50165101,0.00011,2]
[333890740,1722601843091,-495.13548268,0.00011,2]
[333890785,1722601845650,-483.19381549,0.00010999,2]
[333890786,1722601845660,-698.99722159,0.00011,2]
[333890788,1722601845672,-31443.00000001,0.00011,2]
[333890793,1722601845752,-3916.4,0.00011,2]
[333890800,1722601845835,-2100.0,0.00011,2]
[333890802,1722601845849,-546.41985252,0.00011,2]
[333890811,1722601845965,-743.3523116,0.00011,2]
[333890831,1722601995951,151.0,0.00020469,120]
[333890833,1722602589302,108606.0,0.00025,60]
[333890834,1722602611377,151.0,0.00020469,120]
[333890837,1722602721151,169.71,9.185e-05,2]
[333890838,1722602784435,155.0,9.185e-05,2]
[333890839,1722602784968,7595.74946607,9.185e-05,2]
[333890840,1722602787345,411.63443338,9.185e-05,2]
[333890841,1722602787378,11667.90610055,9.185e-05,2]
[333890847,1722603010824,643.41,9.084e-05,2]
[333890848,1722603012381,151.0,0.00020469,120]
[333890849,1722603013416,348.87,9.059e-05,2]
[333890871,1722603031628,-450.44936041,9.138e-05,2]
[333890874,1722603031640,-35.78208459,9.138e-05,2]
[333890876,1722603031650,-150.0,9.184e-05,2]
[333890878,1722603031660,-1201.57050272,9.184e-05,2]
[333890880,1722603031679,-300.0,9.184e-05,2]
[333890882,1722603031690,-300.0,9.184e-05,2]
[333890884,1722603031699,-8706.17959942,9.185e-05,2]
[333890886,1722603031708,-291.30856985,9.185e-05,2]
[333890888,1722603031718,-254.15344492,9.185e-05,2]
[333890890,1722603031727,-871.50003279,9.185e-05,2]
[333890891,1722603031737,-158.92239483,9.185e-05,2]
[333890892,1722603031747,-1370.18392448,9.185e-05,2]
[333890893,1722603031756,-790.49086952,9.185e-05,2]
[333890894,1722603031766,-485.27926909,9.185e-05,2]
[333890895,1722603031775,-155.0,9.185e-05,2]
[333890896,1722603031785,-425.59163485,9.185e-05,2]
[333890897,1722603031795,-155.0,9.185e-05,2]
[333890898,1722603031804,-667.28903615,9.185e-05,2]
[333890899,1722603031825,-7888.45558891,9.185e-05,2]
[333890900,1722603031835,-1222.70109988,9.185e-05,2]
[333890901,1722603031845,-155.37562233,9.185e-05,2]
[333890902,1722603031855,-179.97721001,9.185e-05,2]
[333890903,1722603031865,-411.49022554,9.185e-05,2]
[333890904,1722603031875,-155.17869383,9.185e-05,2]
[333890905,1722603031886,-150.0,9.185e-05,2]
[333890906,1722603031896,-150.0,9.185e-05,2]
[333890907,1722603031906,-150.41876996,9.185e-05,2]
[333890908,1722603031915,-255.0,0.00010102,2]
[333890909,1722603031937,-300.0,0.00010102,2]
[333890910,1722603031947,-420.0,0.00010102,2]
[333890911,1722603031957,-155.61614551,0.000105,2]
[333890912,1722603031966,-3814.28730254,0.000109,2]
[333890913,1722603031978,-720.11349923,0.000109,2]
[333890930,1722603032130,-4571.68699823,0.000109,2]
[333890933,1722603032139,-161.03012202,0.000109,2]
[333890936,1722603032150,-7273.69997134,0.000109,2]
[333890942,1722603032183,-697.89036063,0.000109,2]
[333890944,1722603032195,-597.34227907,0.000109,2]
[333890945,1722603032206,-3800.0,0.000109,2]
[333890956,1722603037826,-430.3797302,0.000109,2]
[333890957,1722603038179,-1270.89616337,0.000109,2]
[333890958,1722603038679,-263.52168622,0.000109,2]
[333890959,1722603038693,-341.99163343,0.000109,2]
[333890960,1722603038711,-1002.86783922,0.000109,2]
[333890964,1722603040021,-1138.94248865,0.000109,2]
[333890965,1722603040037,-9013.27415521,0.000109,2]
[333890966,1722603040048,-2857.31,0.00010973,2]
[333890967,1722603040060,-155.35,0.0001099,2]
[333890968,1722603040070,-150.99,0.00010997,2]
[333890969,1722603040080,-1995.82,0.00010997,2]
[333890970,1722603040090,-1310.46050768,0.00010997,2]
[333890971,1722603040100,-3438.48870942,0.00010999,2]
[333890972,1722603040110,-113424.30662762,0.00011,2]
[333891050,1722603042660,-6452.57280312,0.00011,2]
[333891051,1722603042864,-569.33664,9.184e-05,2]
[333891052,1722603042983,-1285.00431672,9.184e-05,2]
[333891053,1722603042992,-7714.82036451,0.00011,2]
[333891054,1722603043007,-262.4462846,0.00011,2]
[333891127,1722603046629,-17033.55770159,0.00011,2]
[333891128,1722603046639,-131062.48776357,0.00011,2]
[333891129,1722603046692,-1253.76260279,0.00011,2]
[333891130,1722603046724,-2863.10118371,0.00011,2]
[333891133,1722603212659,200.0,0.00027,120]
[333891134,1722603312748,6711.57,0.00027,120]
[333891137,1722603548065,151.0,0.00020469,120]
[333891138,1722603941288,150.0,0.00027,120]
[333891139,1722603942541,151.0,0.00020469,120]
[333891146,1722604231825,-339.75690788,9.653e-05,2]
[333891147,1722604231837,-8.32309212,9.653e-05,2]
[333891148,1722604231846,-155.61614551,0.000105,2]
[333891149,1722604231855,-160.50380237,0.00010789,2]
[333891150,1722604231867,-139.49619763,0.00010789,2]
[333891151,1722604231876,-300.0,0.00010789,2]
[333891152,1722604231885,-1885.37477347,0.0001079,2]
[333891153,1722604231897,-933.49206678,0.0001079,2]
[333891154,1722604231907,-1850.72560984,0.0001079,2]
[333891155,1722604231918,-2202.92086524,0.0001079,2]
[333891156,1722604231942,-858.16390953,0.0001079,2]
[333891157,1722604231957,-1362.60761051,0.0001079,2]
[333891158,1722604232007,-395.67391052,0.0001079,2]
[333891159,1722604232019,-283.39033038,0.0001079,2]
[333891160,1722604232029,-2354.73262451,0.0001079,2]
[333891161,1722604232041,-453.51,0.0001079,2]
[333891189,1722604238766,-2603.10643675,0.0001079,2]
[333891190,1722604238777,-1004.62018061,0.0001079,2]
[333891191,1722604238789,-27760.9389144,0.0001079,2]
[333891192,1722604238800,-415.15420603,0.0001079,2]
[333891193,1722604238811,-5900.48940527,0.0001079,2]
[333891194,1722604238822,-3700.0,0.0001079,2]
[333891195,1722604238833,-178.09075616,0.0001079,2]
[333891196,1722604238843,-189.65652,0.0001089,2]
[333891197,1722604238852,-150.0,0.00010899,2]
[333891198,1722604238861,-568.4852,0.000109,2]
[333891199,1722604238870,-506.42438923,0.000109,2]
[333891200,1722604238882,-602.5968,0.000109,2]
[333891201,1722604238893,-1788.51331077,0.000109,2]
[333891202,1722604238903,-165.18250567,0.000109,2]
[333891203,1722604238913,-326.0412847,0.000109,2]
[333891204,1722604238923,-4780.80901739,0.000109,2]
[333891205,1722604238935,-734.89712077,0.000109,2]
[333891206,1722604238947,-1393.41253977,0.000109,2]
[333891207,1722604238958,-425.4,0.000109,2]
[333891213,1722604239945,-669.6314898,0.000109,2]
[333891214,1722604240001,-0.11283321,0.000109,2]
[333891215,1722604241055,-321.00303604,0.000109,2]
[333891307,1722604242792,-1278.69950695,0.000109,2]
[333891313,1722604242960,-13851.35720351,0.000109,2]
[333891314,1722604242969,-169.46309799,0.000109,2]
[333891315,1722604242978,-153.44,0.0001099,2]
[333891316,1722604242987,-153.44,0.0001099,2]
[333891317,1722604242996,-153.44,0.0001099,2]
[333891318,1722604243005,-2662.52702859,0.00010997,2]
[333891319,1722604243014,-1005.27881626,0.00011,2]
[333891320,1722604243025,-455782.3824467,0.00011,2]
[333891321,1722604243037,-178905.24882099,0.00011,2]
[333891322,1722604243081,-611923.82959112,0.00011,2]
[333891324,1722604243092,-326.97780806,0.00011,2]
[333891327,1722604243108,-977.79543901,0.00011,2]
[333891368,1722604246376,-510.8345,0.00011,2]
[333891369,1722604246389,-59999.81410822,0.00011,2]
[333891370,1722604246400,-1232.70706215,0.00011,2]
[333891371,1722604246451,-5102.30731548,0.00011,2]
[333891373,1722604246467,-592.20419882,0.00011,2]
[333891376,1722604246478,-3240.15,0.00011,2]
[333891378,1722604246489,-702.02781617,0.00011,2]
[333891381,1722604246508,-1869.3662922,0.00011,2]
[333891385,1722604246541,-1321.4022825,0.00011,2]
[333891387,1722604246553,-953.345895,0.00011,2]
[333891390,1722604246569,-403.53386833,0.00011,2]
[333891864,1722604393041,150.5,0.00019169,120]
[333891865,1722604393503,150.5,0.00019159,120]
[333891866,1722604393977,150.5,0.00019149,120]
[333891867,1722604415969,200.0,0.00027,120]
[333891868,1722604632559,827.0,0.00027,120]
[333891870,1722604976876,363.39,8.262e-05,2]
[333891871,1722605004761,-398.0,9.547e-05,2]
[333891872,1722605004784,-3241.3605,9.553e-05,2]
[333891873,1722605029885,984.6395,8.262e-05,2]
[333891874,1722605029908,8279.74624936,8.262e-05,2]
[333891875,1722605038024,18826.24515793,8.262e-05,2]
[333891876,1722605041991,183663.29057438,8.262e-05,2]
[333891877,1722605043919,1222.70109988,8.262e-05,2]
[333891878,1722605045650,158.92239483,8.262e-05,2]
[333891879,1722605048994,1451.74304455,0.00025,60]
[333891880,1722605050036,7569.30838559,8.262e-05,2]
[333891881,1722605057343,155.10377634,8.262e-05,2]
[333891882,1722605061112,17769.01236169,8.262e-05,2]
[333891883,1722605061136,2607.75569055,8.262e-05,2]
[333891884,1722605061999,411.57531364,8.262e-05,2]
[333891885,1722605062261,425.59163485,8.262e-05,2]
[333891886,1722605062919,395.24247092,8.262e-05,2]
[333891887,1722605065373,485.27926909,8.262e-05,2]
[333891888,1722605071412,871.50003279,8.262e-05,2]
[333891889,1722605072263,425.59163485,8.262e-05,2]
[333891890,1722605077221,369.64875359,8.262e-05,2]
[333891891,1722605119727,663.71277777,9e-05,2]
[333891892,1722605128236,9261.95140932,8.262e-05,2]
[333891893,1722605136851,18826.24515793,8.262e-05,2]
[333891894,1722605140524,43865.71536469,8.262e-05,2]
[333891895,1722605160923,1370.18392448,8.262e-05,2]
[333891896,1722605166846,18826.24515793,8.262e-05,2]
[333891897,1722605178553,3067.76814312,8.262e-05,2]
[333891898,1722605185320,357.33749811,8.262e-05,2]
[333891899,1722605192516,19901.88410166,8.262e-05,2]
[333891920,1722605432016,-334.3240911,0.00010013,2]
[333891921,1722605432028,-319.86038199,0.00010013,2]
[333891922,1722605432220,-1345.81552691,0.00010013,2]
[333891923,1722605432230,-553.0,0.00010013,2]
[333891924,1722605432239,-947.76827511,0.00010014,2]
[333891925,1722605432249,-2434.87229323,0.00010042,2]
[333891937,1722605439559,-8208.53520196,0.00010042,2]
[333891938,1722605439570,-1606.73102151,0.00010042,2]
[333891939,1722605439582,-2487.67615506,0.00010042,2]
[333891940,1722605439593,-9123.94532824,0.00010042,2]
[333891941,1722605439603,-6710.17,0.00010086,2]
[333891942,1722605439612,-285.13,0.00010095,2]
[333891943,1722605439622,-200.0,0.00010096,2]
[333891944,1722605439632,-174.08,0.00010158,2]
[333891945,1722605439642,-300.0,0.00010166,2]
[333891946,1722605439651,-300.0,0.00010166,2]
[333891947,1722605439661,-217.6,0.00010175,2]
[333891948,1722605439670,-250.0,0.00010441,2]
[333891949,1722605439680,-255.14581275,0.000105,2]
[333891950,1722605439691,-193.19,0.000105,2]
[333891951,1722605439701,-171.97,0.00010603,2]
[333891952,1722605439712,-2265.83,0.00010867,2]
[333891953,1722605439721,-150.0,0.00010889,2]
[333891954,1722605439731,-2645.82187557,0.0001089,2]
[333891955,1722605439743,-5292.42521684,0.0001089,2]
[333891956,1722605439758,-1451.33807564,0.0001089,2]
[333891957,1722605439770,-402.04475492,0.0001089,2]
[333891959,1722605439782,-1427.25349251,0.0001089,2]
[333891961,1722605439795,-325.88,0.0001089,2]
[333891963,1722605439807,-14741.93903251,0.0001089,2]
[333891964,1722605439818,-1989.47898931,0.0001089,2]
[333891965,1722605439830,-981.55224733,0.0001089,2]
[333891966,1722605439841,-817.15530766,0.0001089,2]
[333892009,1722605440544,-400.0,0.000106,3]
[333892011,1722605440553,-601.30950324,0.0001089,2]
[333892013,1722605440570,-602.00767301,0.0001089,2]
[333892020,1722605440631,-697.33897845,0.0001089,2]
[333892025,1722605440662,-3504.1443,0.0001089,2]
[333892026,1722605440673,-498.00325714,0.0001089,2]
[333892027,1722605440685,-394.9925689,0.0001089,2]
[333892029,1722605440696,-6885.1014996,0.0001089,2]
[333892031,1722605440708,-4302.89567398,0.0001089,2]
[333892034,1722605440720,-923.15264686,0.0001089,2]
[333892038,1722605440757,-921.3,0.0001089,2]
[333892072,1722605443037,-900.0,0.000107,3]
[333892073,1722605443047,-697.17608799,0.0001089,2]
[333892074,1722605443058,-1079.31918,0.0001089,2]
[333892082,1722605443154,-245443.36963854,0.0001089,2]
[333892083,1722605443164,-158.0471,0.0001089,2]
[333892084,1722605443174,-499.99,0.000109,2]
[333892085,1722605443184,-23294.34108968,0.000109,2]
[333892086,1722605443193,-309.09566482,0.000109,2]
[333892087,1722605443203,-392.95183792,0.000109,2]
[333892088,1722605443213,-169.46309799,0.000109,2]
[333892089,1722605443223,-581.66,0.00010959,5]
[333892090,1722605443233,-250.0,0.00010959,2]
[333892091,1722605443242,-150.67822934,0.00010963,2]
[333892092,1722605443251,-3367.0720841,0.00010974,2]
[333892093,1722605443263,-153.44,0.0001099,2]
[333892094,1722605443273,-153.44,0.0001099,2]
[333892096,1722605443282,-153.44,0.0001099,2]
[333892098,1722605443291,-1183.34534604,0.00010997,2]
[333892100,1722605443301,-210.47845723,0.00010999,2]
[333892102,1722605443310,-1164.95431488,0.00010999,2]
[333892104,1722605443319,-456.34796435,0.00010999,2]
[333892106,1722605443328,-169.44357504,0.00010999,2]
[333892108,1722605443338,-195669.77019312,0.00011,2]
[333892111,1722605443356,-1479.3204855,0.00011,2]
[333892172,1722605446561,-345.22,9.461e-05,2]
[333892174,1722605446571,-1300.0,0.000108,3]
[333892176,1722605446580,-1800.0,0.000109,3]
[333892178,1722605446590,-582.47715744,0.00010999,2]
[333892180,1722605446599,-516780.88430151,0.00011,2]
[333892182,1722605446609,-752.0,0.00011,2]
[333892184,1722605446619,-26372.28263999,0.00011,2]
[333892186,1722605446633,-40010.00324721,0.00011,2]
[333892188,1722605446644,-2246.71883833,0.00011,2]
[333892203,1722605446818,-15771.68297295,0.00011,2]
[333892220,1722605446977,-259735.69439118,0.00011,2]
[333892222,1722605446989,-2710.37652914,0.00011,2]
[333892235,1722605592882,256.0,0.00019168,120]
[333892236,1722605611799,200.0,0.00027,120]
[333892237,1722605759711,239.49,0.00027,120]
[333892238,1722605953074,150.5,0.00018849,120]
[333892239,1722606021598,2000.0,0.00027,120]
[333892240,1722606284780,1027.20867978,0.00027,120]
[333892242,1722606632550,-381.83546834,9.66e-05,2]
[333892244,1722606632600,-758.46063196,9.66e-05,2]
[333892245,1722606632612,-715.22272661,9.66e-05,2]
[333892246,1722606632671,-144.48117309,9.66e-05,2]
[333892247,1722606632680,-184.16438691,9.694e-05,2]
[333892248,1722606632727,-15.83561309,9.694e-05,2]
[333892249,1722606632740,-1020.27881626,0.0001,2]
[333892250,1722606632750,-508.44,0.0001041,2]
[333892251,1722606632760,-508.44,0.00010413,2]
[333892252,1722606632769,-508.44,0.00010415,2]
[333892253,1722606632779,-508.44,0.00010418,2]
[333892254,1722606632788,-508.44,0.00010421,2]
[333892255,1722606632798,-508.44,0.00010424,2]
[333892256,1722606632807,-508.44,0.00010426,2]
[333892257,1722606632817,-508.44,0.00010429,2]
[333892258,1722606632826,-508.44,0.00010432,2]
[333892259,1722606632835,-508.44,0.00010435,2]
[333892260,1722606632845,-508.44,0.00010437,2]
[333892261,1722606632856,-508.44,0.0001044,2]
[333892262,1722606632865,-508.44,0.00010443,2]
[333892263,1722606632875,-300.0,0.00010444,2]
[333892264,1722606632884,-348.35819895,0.00010445,2]
[333892266,1722606632911,-160.08180105,0.00010445,2]
[333892267,1722606632921,-508.44,0.00010448,2]
[333892268,1722606632932,-149.39819895,0.00010451,2]
[333892269,1722606632946,-359.04180105,0.00010451,2]
[333892271,1722606632956,-508.44,0.00010454,2]
[333892273,1722606632965,-270.044292,0.00010456,2]
[333892275,1722606632977,-238.395708,0.00010456,2]
[333892277,1722606632987,-508.44,0.00010459,2]
[333892279,1722606632996,-508.44,0.00010462,2]
[333892281,1722606633005,-150.0,0.00010462,2]
[333892283,1722606633015,-250.0,0.00010507,2]
[333892284,1722606633024,-660.68,0.00010664,2]
[333892285,1722606633034,-354.96,0.00010676,2]
[333892286,1722606633044,-15474.1268,0.0001079,2]
[333892287,1722606633054,-300.0,0.000108,3]
[333892288,1722606633064,-1032.99872949,0.000109,2]
[333892289,1722606633074,-700.0,0.000109,3]